[Event "Titled Tuesday Blitz April 4 Early 2023"]
[White "Urbina Perez, Juan Antonio"]
[Black "Samsonkin, Artiom"]
[WhiteFideId "2217368"]
[BlackFideId "13503111"]
[WhiteElo "2197"]
[BlackElo "2524"]
[Result "0-1"]
[Round "01"]
[TimeControl "180+2"]
[Date "2023.04.04"]
[WhiteClock "0:00:51"]
[BlackClock "0:00:08"]

1. c4 {[%clk 0:02:59]}  e5 {[%clk 0:02:51]} 2. g3 {[%clk 0:03:00]}  Nf6 {[%clk 0:02:52]} 3. Bg2 {[%clk 0:03:01]}  c6 {[%clk 0:02:52]} 4. d4 {[%clk 0:02:34]}  e4 {[%clk 0:02:52]} 5. e3 {[%clk 0:02:32]}  d5 {[%clk 0:02:52]} 6. cxd5 {[%clk 0:02:31]}  cxd5 {[%clk 0:02:53]} 7. Ne2 {[%clk 0:02:27]}  Nc6 {[%clk 0:02:47]} 8. Nbc3 {[%clk 0:02:14]}  Bd6 {[%clk 0:02:45]} 9. a3 {[%clk 0:02:13]}  O-O {[%clk 0:02:45]} 10. O-O {[%clk 0:02:12]}  Be6 {[%clk 0:02:45]} 11. b4 {[%clk 0:02:12]}  Qd7 {[%clk 0:02:39]} 12. Bb2 {[%clk 0:02:06]}  a5 {[%clk 0:02:39]} 13. b5 {[%clk 0:02:05]}  Na7 {[%clk 0:02:39]} 14. a4 {[%clk 0:02:05]}  Nc8 {[%clk 0:02:40]} 15. Ba3 {[%clk 0:02:05]}  Bxa3 {[%clk 0:02:32]} 16. Rxa3 {[%clk 0:02:06]}  Nd6 {[%clk 0:02:29]} 17. Qb3 {[%clk 0:02:03]}  b6 {[%clk 0:02:28]} 18. Rc1 {[%clk 0:02:03]}  Nc4 {[%clk 0:02:23]} 19. Raa1 {[%clk 0:01:59]}  Rac8 {[%clk 0:02:24]} 20. Nd1 {[%clk 0:01:54]}  Bh3 {[%clk 0:02:15]} 21. Nb2 {[%clk 0:01:50]}  Bxg2 {[%clk 0:01:52]} 22. Kxg2 {[%clk 0:01:51]}  Qg4 {[%clk 0:01:34]} 23. Ng1 {[%clk 0:01:49]}  Qf5 {[%clk 0:01:06]} 24. Nxc4 {[%clk 0:01:42]}  dxc4 {[%clk 0:01:04]} 25. Rxc4 {[%clk 0:01:42]}  Ng4 {[%clk 0:01:00]} 26. Ra2 {[%clk 0:01:37]}  Rxc4 {[%clk 0:00:51]} 27. Qxc4 {[%clk 0:01:38]}  Qxf2+ {[%clk 0:00:35]} 28. Rxf2 {[%clk 0:01:35]}  Nxe3+ {[%clk 0:00:35]} 29. Kh3 {[%clk 0:01:32]}  Nxc4 {[%clk 0:00:36]} 30. Rc2 {[%clk 0:01:30]}  Rc8 {[%clk 0:00:27]} 31. Ne2 {[%clk 0:01:27]}  f5 {[%clk 0:00:22]} 32. Rc3 {[%clk 0:01:15]}  Kf7 {[%clk 0:00:20]} 33. g4 {[%clk 0:01:12]}  g6 {[%clk 0:00:17]} 34. gxf5 {[%clk 0:01:12]}  gxf5 {[%clk 0:00:18]} 35. Nf4 {[%clk 0:01:13]}  Nd6 {[%clk 0:00:18]} 36. Rc6 {[%clk 0:01:11]}  Rxc6 {[%clk 0:00:12]} 37. bxc6 {[%clk 0:01:12]}  b5 {[%clk 0:00:12]} 38. axb5 {[%clk 0:01:11]}  Nxb5 {[%clk 0:00:13]} 39. Nd5 {[%clk 0:01:10]}  a4 {[%clk 0:00:08]} 40. Nb4 {[%clk 0:01:09]}  Ke6 {[%clk 0:00:08]} 41. d5+ {[%clk 0:01:08]}  Kd6 {[%clk 0:00:08]} 42. Kg3 {[%clk 0:01:09]}  Kc5 {[%clk 0:00:08]} 43. Na2 {[%clk 0:00:56]}  Kxd5 {[%clk 0:00:08]} 44. Kf4 {[%clk 0:00:56]}  Kxc6 {[%clk 0:00:08]} 45. h4 {[%clk 0:00:54]}  Kd5 {[%clk 0:00:08]} 46. Kxf5 {[%clk 0:00:53]}  e3 {[%clk 0:00:08]} 47. Nb4+ {[%clk 0:00:52]}  Kc4 {[%clk 0:00:08]} 48. Nc2 {[%clk 0:00:52]}  e2 {[%clk 0:00:08]} 49. Ne1 {[%clk 0:00:51]}  a3 {[%clk 0:00:08]} 50. Kf4 {[%clk 0:00:51]}  a2 {[%clk 0:00:08]} 51. Kf3 {[%clk 0:00:51]}  a1=Q {[%clk 0:00:08]} 0-1


[Site "https://www.chess.com"]

[Event "Titled Tuesday Blitz April 4 Early 2023"]
[White "Goltseva, Ekaterina"]
[Black "Yeletsky, Ivan"]
[WhiteFideId "24173770"]
[BlackFideId "24180327"]
[WhiteElo "2200"]
[BlackElo "2422"]
[Result "0-1"]
[Round "01"]
[TimeControl "180+2"]
[Date "2023.04.04"]
[WhiteClock "0:00:06"]
[BlackClock "0:00:27"]

1. d4 {[%clk 0:02:58]}  d5 {[%clk 0:02:59]} 2. c4 {[%clk 0:02:58]}  e5 {[%clk 0:02:59]} 3. dxe5 {[%clk 0:02:57]}  d4 {[%clk 0:02:57]} 4. a3 {[%clk 0:02:57]}  f6 {[%clk 0:02:48]} 5. e3 {[%clk 0:02:52]}  Nc6 {[%clk 0:02:47]} 6. exf6 {[%clk 0:02:41]}  Nxf6 {[%clk 0:02:46]} 7. Nf3 {[%clk 0:02:32]}  Bg4 {[%clk 0:02:38]} 8. Be2 {[%clk 0:02:31]}  dxe3 {[%clk 0:02:29]} 9. Bxe3 {[%clk 0:02:24]}  Qxd1+ {[%clk 0:02:18]} 10. Bxd1 {[%clk 0:02:24]}  O-O-O {[%clk 0:02:14]} 11. O-O {[%clk 0:02:18]}  Ne4 {[%clk 0:02:10]} 12. Nbd2 {[%clk 0:02:10]}  Nc5 {[%clk 0:02:03]} 13. b4 {[%clk 0:02:00]}  Nd3 {[%clk 0:02:02]} 14. Be2 {[%clk 0:01:47]}  Be7 {[%clk 0:01:58]} 15. Rfd1 {[%clk 0:01:30]}  Nb2 {[%clk 0:01:53]} 16. Rdb1 {[%clk 0:01:23]}  Na4 {[%clk 0:01:54]} 17. Re1 {[%clk 0:01:02]}  Bf6 {[%clk 0:01:49]} 18. Rac1 {[%clk 0:00:47]}  Bb2 {[%clk 0:01:49]} 19. b5 {[%clk 0:00:28]}  Bxc1 {[%clk 0:01:32]} 20. Rxc1 {[%clk 0:00:29]}  Na5 {[%clk 0:01:32]} 21. h3 {[%clk 0:00:27]}  Bh5 {[%clk 0:01:31]} 22. Ne4 {[%clk 0:00:25]}  Rhe8 {[%clk 0:01:30]} 23. Neg5 {[%clk 0:00:23]}  h6 {[%clk 0:01:29]} 24. g4 {[%clk 0:00:22]}  Bg6 {[%clk 0:01:29]} 25. Nh4 {[%clk 0:00:21]}  Bd3 {[%clk 0:01:23]} 26. Bxd3 {[%clk 0:00:16]}  Rxd3 {[%clk 0:01:24]} 27. Ngf3 {[%clk 0:00:16]}  Nc3 {[%clk 0:01:17]} 28. Kg2 {[%clk 0:00:11]}  Nxc4 {[%clk 0:01:16]} 29. Bd4 {[%clk 0:00:08]}  Ne2 {[%clk 0:01:02]} 30. Rxc4 {[%clk 0:00:06]}  Re4 {[%clk 0:01:03]} 31. Nf5 {[%clk 0:00:04]}  Kd7 {[%clk 0:00:58]} 32. Rc5 {[%clk 0:00:02]}  g6 {[%clk 0:00:37]} 33. Rd5+ {[%clk 0:00:03]}  Ke6 {[%clk 0:00:35]} 34. Rd8 {[%clk 0:00:02]}  gxf5 {[%clk 0:00:35]} 35. Re8+ {[%clk 0:00:03]}  Kd5 {[%clk 0:00:31]} 36. Rd8+ {[%clk 0:00:03]}  Kc4 {[%clk 0:00:28]} 37. Rc8 {[%clk 0:00:04]}  Nxd4 {[%clk 0:00:28]} 38. Rxc7+ {[%clk 0:00:04]}  Kxb5 {[%clk 0:00:27]} 39. Nxd4+ {[%clk 0:00:05]}  Rdxd4 {[%clk 0:00:28]} 40. Rxb7+ {[%clk 0:00:05]}  Ka6 {[%clk 0:00:27]} 41. Rh7 {[%clk 0:00:05]}  fxg4 {[%clk 0:00:28]} 42. Rxh6+ {[%clk 0:00:05]}  Kb5 {[%clk 0:00:28]} 43. h4 {[%clk 0:00:06]}  a5 {[%clk 0:00:27]} 0-1


[Site "https://www.chess.com"]

[Event "Titled Tuesday Blitz April 4 Early 2023"]
[White "Urazayev, Arystanbek"]
[Black "KorolDimitriy75"]
[WhiteFideId "13709810"]
[WhiteElo "2449"]
[BlackElo "2468"]
[Result "1-0"]
[Round "01"]
[TimeControl "180+2"]
[Date "2023.04.04"]
[WhiteClock "0:00:49"]
[BlackClock "0:00:02"]

1. d4 {[%clk 0:02:58]}  Nf6 {[%clk 0:02:59]} 2. c4 {[%clk 0:02:58]}  c5 {[%clk 0:02:59]} 3. d5 {[%clk 0:02:58]}  b5 {[%clk 0:02:59]} 4. cxb5 {[%clk 0:02:58]}  a6 {[%clk 0:03:00]} 5. bxa6 {[%clk 0:02:58]}  g6 {[%clk 0:03:00]} 6. Nc3 {[%clk 0:02:59]}  Bxa6 {[%clk 0:03:00]} 7. e4 {[%clk 0:02:58]}  Bxf1 {[%clk 0:03:01]} 8. Kxf1 {[%clk 0:02:59]}  d6 {[%clk 0:03:01]} 9. g3 {[%clk 0:03:00]}  Bg7 {[%clk 0:03:02]} 10. Kg2 {[%clk 0:03:00]}  O-O {[%clk 0:03:02]} 11. Nf3 {[%clk 0:03:00]}  Nbd7 {[%clk 0:03:01]} 12. Qe2 {[%clk 0:02:58]}  Qb8 {[%clk 0:02:51]} 13. a4 {[%clk 0:02:52]}  Qb4 {[%clk 0:02:50]} 14. Ra3 {[%clk 0:02:50]}  Rfb8 {[%clk 0:02:27]} 15. Re1 {[%clk 0:02:45]}  Nb6 {[%clk 0:02:20]} 16. Qc2 {[%clk 0:02:30]}  Nc4 {[%clk 0:02:06]} 17. Ra2 {[%clk 0:02:29]}  Nd7 {[%clk 0:01:39]} 18. Nd2 {[%clk 0:02:18]}  Nde5 {[%clk 0:01:29]} 19. Nxc4 {[%clk 0:02:18]}  Nxc4 {[%clk 0:01:29]} 20. Re2 {[%clk 0:02:00]}  Qb3 {[%clk 0:01:15]} 21. Qxb3 {[%clk 0:01:33]}  Rxb3 {[%clk 0:01:16]} 22. Rc2 {[%clk 0:01:30]}  Rb4 {[%clk 0:00:58]} 23. Nd1 {[%clk 0:01:24]}  Nb6 {[%clk 0:00:14]} 24. a5 {[%clk 0:01:24]}  Nc4 {[%clk 0:00:14]} 25. b3 {[%clk 0:01:19]}  Ne5 {[%clk 0:00:11]} 26. f4 {[%clk 0:01:08]}  Nd7 {[%clk 0:00:10]} 27. Ne3 {[%clk 0:00:51]}  Rxe4 {[%clk 0:00:05]} 28. Nc4 {[%clk 0:00:52]}  Nf6 {[%clk 0:00:04]} 29. a6 {[%clk 0:00:48]}  Nxd5 {[%clk 0:00:02]} 30. a7 {[%clk 0:00:49]} 1-0


[Site "https://www.chess.com"]

[Event "Titled Tuesday Blitz April 4 Early 2023"]
[White "Manukyan, Artyom"]
[Black "Kadric, Denis"]
[WhiteFideId "13305786"]
[BlackFideId "14403803"]
[WhiteElo "2078"]
[BlackElo "2612"]
[Result "0-1"]
[Round "01"]
[TimeControl "180+2"]
[Date "2023.04.04"]
[WhiteClock "0:00:07"]
[BlackClock "0:00:08"]

1. e4 {[%clk 0:03:00]}  d6 {[%clk 0:02:55]} 2. d4 {[%clk 0:02:59]}  Nf6 {[%clk 0:02:54]} 3. Nc3 {[%clk 0:02:59]}  Nbd7 {[%clk 0:02:52]} 4. f4 {[%clk 0:02:58]}  e5 {[%clk 0:02:53]} 5. Nf3 {[%clk 0:02:58]}  exd4 {[%clk 0:02:51]} 6. Qxd4 {[%clk 0:02:59]}  c6 {[%clk 0:02:51]} 7. Bd2 {[%clk 0:03:00]}  d5 {[%clk 0:02:48]} 8. exd5 {[%clk 0:02:59]}  Bc5 {[%clk 0:02:48]} 9. Qd3 {[%clk 0:03:00]}  O-O {[%clk 0:02:47]} 10. O-O-O {[%clk 0:02:19]}  Qc7 {[%clk 0:02:46]} 11. h3 {[%clk 0:02:09]}  cxd5 {[%clk 0:02:34]} 12. g4 {[%clk 0:02:02]}  Nb6 {[%clk 0:02:22]} 13. g5 {[%clk 0:02:00]}  Ne4 {[%clk 0:02:23]} 14. Nxe4 {[%clk 0:01:55]}  dxe4 {[%clk 0:02:24]} 15. Qxe4 {[%clk 0:01:56]}  Be6 {[%clk 0:02:22]} 16. Bd3 {[%clk 0:01:55]}  g6 {[%clk 0:02:21]} 17. Bc3 {[%clk 0:01:45]}  Bd5 {[%clk 0:02:09]} 18. Qe5 {[%clk 0:01:33]}  Qxe5 {[%clk 0:02:09]} 19. Nxe5 {[%clk 0:01:34]}  Bxh1 {[%clk 0:02:09]} 20. Rxh1 {[%clk 0:01:35]}  Be3+ {[%clk 0:01:58]} 21. Kb1 {[%clk 0:01:20]}  Nd5 {[%clk 0:01:51]} 22. Nd7 {[%clk 0:00:43]}  Nxc3+ {[%clk 0:01:49]} 23. bxc3 {[%clk 0:00:44]}  Rfd8 {[%clk 0:01:42]} 24. Nf6+ {[%clk 0:00:43]}  Kg7 {[%clk 0:01:42]} 25. Rf1 {[%clk 0:00:43]}  Rac8 {[%clk 0:01:40]} 26. c4 {[%clk 0:00:42]}  Rd4 {[%clk 0:01:26]} 27. Nd5 {[%clk 0:00:40]}  Bd2 {[%clk 0:01:19]} 28. Rf2 {[%clk 0:00:36]}  Ba5 {[%clk 0:01:20]} 29. f5 {[%clk 0:00:32]}  Bd8 {[%clk 0:01:12]} 30. f6+ {[%clk 0:00:26]}  Kf8 {[%clk 0:01:12]} 31. Re2 {[%clk 0:00:16]}  Rc6 {[%clk 0:00:51]} 32. Kb2 {[%clk 0:00:09]}  Re6 {[%clk 0:00:49]} 33. Kc3 {[%clk 0:00:07]}  Rxe2 {[%clk 0:00:44]} 34. Bxe2 {[%clk 0:00:08]}  Re4 {[%clk 0:00:38]} 35. Bf3 {[%clk 0:00:08]}  Re1 {[%clk 0:00:35]} 36. h4 {[%clk 0:00:06]}  b6 {[%clk 0:00:35]} 37. Kd2 {[%clk 0:00:05]}  Ra1 {[%clk 0:00:34]} 38. Nc3 {[%clk 0:00:04]}  Bc7 {[%clk 0:00:32]} 39. a4 {[%clk 0:00:04]}  Rg1 {[%clk 0:00:31]} 40. Ke2 {[%clk 0:00:02]}  Bg3 {[%clk 0:00:30]} 41. h5 {[%clk 0:00:02]}  Bh4 {[%clk 0:00:24]} 42. Ne4 {[%clk 0:00:02]}  Ra1 {[%clk 0:00:21]} 43. hxg6 {[%clk 0:00:02]}  hxg6 {[%clk 0:00:21]} 44. Kd3 {[%clk 0:00:02]}  Rxa4 {[%clk 0:00:21]} 45. Kd4 {[%clk 0:00:03]}  Ra1 {[%clk 0:00:20]} 46. c3 {[%clk 0:00:03]}  a5 {[%clk 0:00:20]} 47. Kd5 {[%clk 0:00:03]}  a4 {[%clk 0:00:20]} 48. c5 {[%clk 0:00:04]}  bxc5 {[%clk 0:00:20]} 49. Nxc5 {[%clk 0:00:05]}  Bxg5 {[%clk 0:00:19]} 50. Nd7+ {[%clk 0:00:04]}  Kg8 {[%clk 0:00:19]} 51. Kc4 {[%clk 0:00:04]}  Rf1 {[%clk 0:00:17]} 52. Bd5 {[%clk 0:00:05]}  Bxf6 {[%clk 0:00:16]} 53. Kb4 {[%clk 0:00:05]}  Be7+ {[%clk 0:00:14]} 54. Kxa4 {[%clk 0:00:05]}  Rf4+ {[%clk 0:00:10]} 55. Kb5 {[%clk 0:00:05]}  g5 {[%clk 0:00:11]} 56. c4 {[%clk 0:00:05]}  g4 {[%clk 0:00:11]} 57. Ne5 {[%clk 0:00:06]}  g3 {[%clk 0:00:10]} 58. c5 {[%clk 0:00:06]}  Bxc5 {[%clk 0:00:06]} 59. Kxc5 {[%clk 0:00:07]}  Rf5 {[%clk 0:00:07]} 60. Nf3 {[%clk 0:00:05]}  g2 {[%clk 0:00:06]} 61. Ng1 {[%clk 0:00:04]}  Rf1 {[%clk 0:00:06]} 62. Bxg2 {[%clk 0:00:03]}  Rxg1 {[%clk 0:00:07]} 63. Bd5 {[%clk 0:00:04]}  Rg5 {[%clk 0:00:07]} 64. Kd4 {[%clk 0:00:05]}  Kg7 {[%clk 0:00:07]} 65. Be4 {[%clk 0:00:05]}  Kf6 {[%clk 0:00:06]} 66. Bf3 {[%clk 0:00:05]}  Ra5 {[%clk 0:00:06]} 67. Ke4 {[%clk 0:00:06]}  Ra4+ {[%clk 0:00:06]} 68. Ke3 {[%clk 0:00:06]}  Ke5 {[%clk 0:00:07]} 69. Kf2 {[%clk 0:00:07]}  Ra3 {[%clk 0:00:07]} 70. Kg3 {[%clk 0:00:07]}  f5 {[%clk 0:00:08]} 0-1


[Site "https://www.chess.com"]

[Event "Titled Tuesday Blitz April 4 Early 2023"]
[White "Pranav Anand"]
[Black "Namitbir Singh Walia"]
[WhiteFideId "46626786"]
[BlackFideId "35071068"]
[WhiteElo "2389"]
[BlackElo "2239"]
[Result "1-0"]
[Round "01"]
[TimeControl "180+2"]
[Date "2023.04.04"]
[WhiteClock "0:01:29"]
[BlackClock "0:00:22"]

1. d4 {[%clk 0:03:00]}  Nf6 {[%clk 0:02:59]} 2. c4 {[%clk 0:03:01]}  c5 {[%clk 0:02:59]} 3. d5 {[%clk 0:03:01]}  e6 {[%clk 0:02:59]} 4. Nc3 {[%clk 0:03:01]}  exd5 {[%clk 0:03:00]} 5. cxd5 {[%clk 0:03:02]}  d6 {[%clk 0:03:01]} 6. Nf3 {[%clk 0:03:02]}  g6 {[%clk 0:03:01]} 7. g3 {[%clk 0:03:03]}  Bg7 {[%clk 0:03:02]} 8. Bg2 {[%clk 0:03:03]}  O-O {[%clk 0:03:02]} 9. O-O {[%clk 0:03:04]}  Re8 {[%clk 0:02:58]} 10. Bf4 {[%clk 0:03:04]}  Ne4 {[%clk 0:02:49]} 11. Rc1 {[%clk 0:02:57]}  Nxc3 {[%clk 0:02:39]} 12. bxc3 {[%clk 0:02:58]}  b5 {[%clk 0:02:39]} 13. h4 {[%clk 0:02:46]}  Qe7 {[%clk 0:02:30]} 14. Re1 {[%clk 0:02:44]}  Nd7 {[%clk 0:02:30]} 15. Nd2 {[%clk 0:02:33]}  Ne5 {[%clk 0:02:16]} 16. Bg5 {[%clk 0:02:24]}  Qc7 {[%clk 0:02:12]} 17. Ne4 {[%clk 0:02:23]}  Nd7 {[%clk 0:01:57]} 18. h5 {[%clk 0:02:14]}  f5 {[%clk 0:01:50]} 19. Nd2 {[%clk 0:02:13]}  Ne5 {[%clk 0:01:48]} 20. h6 {[%clk 0:02:12]}  Bh8 {[%clk 0:01:47]} 21. Nf3 {[%clk 0:02:12]}  Nxf3+ {[%clk 0:01:45]} 22. Bxf3 {[%clk 0:02:08]}  Bb7 {[%clk 0:01:45]} 23. Qd2 {[%clk 0:02:02]}  a6 {[%clk 0:01:42]} 24. e4 {[%clk 0:02:01]}  fxe4 {[%clk 0:01:41]} 25. Bxe4 {[%clk 0:02:01]}  Qf7 {[%clk 0:01:41]} 26. Bg2 {[%clk 0:01:58]}  Bf6 {[%clk 0:01:41]} 27. Bf4 {[%clk 0:01:58]}  Qd7 {[%clk 0:01:32]} 28. Kh2 {[%clk 0:01:55]}  Kh8 {[%clk 0:01:13]} 29. Bh3 {[%clk 0:01:53]}  Qc7 {[%clk 0:01:13]} 30. Be6 {[%clk 0:01:50]}  Qe7 {[%clk 0:01:00]} 31. Re2 {[%clk 0:01:40]}  Qf8 {[%clk 0:00:58]} 32. Rce1 {[%clk 0:01:38]}  Rad8 {[%clk 0:00:59]} 33. Bg5 {[%clk 0:01:35]}  Re7 {[%clk 0:00:43]} 34. Qf4 {[%clk 0:01:32]}  Bxg5 {[%clk 0:00:39]} 35. Qxg5 {[%clk 0:01:33]}  Rde8 {[%clk 0:00:39]} 36. f4 {[%clk 0:01:31]}  Bc8 {[%clk 0:00:36]} 37. g4 {[%clk 0:01:28]}  Bxe6 {[%clk 0:00:22]} 38. dxe6 {[%clk 0:01:29]}  Qg8 {[%clk 0:00:22]} 39. Qf6+ {[%clk 0:01:29]} 1-0


[Site "https://www.chess.com"]

[Event "Titled Tuesday Blitz April 4 Early 2023"]
[White "Albornoz Cabrera, Carlos Daniel"]
[Black "Yeritsyan, Hayk"]
[WhiteFideId "3518736"]
[BlackFideId "13307320"]
[WhiteElo "2516"]
[BlackElo "2443"]
[Result "1-0"]
[Round "01"]
[TimeControl "180+2"]
[Date "2023.04.04"]
[WhiteClock "0:00:49"]
[BlackClock "0:00:09"]

1. e4 {[%clk 0:03:00]}  c6 {[%clk 0:02:56]} 2. Nf3 {[%clk 0:03:00]}  d5 {[%clk 0:02:57]} 3. Nc3 {[%clk 0:03:00]}  Bg4 {[%clk 0:02:57]} 4. h3 {[%clk 0:03:00]}  Bxf3 {[%clk 0:02:57]} 5. Qxf3 {[%clk 0:03:01]}  e6 {[%clk 0:02:58]} 6. Be2 {[%clk 0:02:59]}  Nf6 {[%clk 0:02:58]} 7. O-O {[%clk 0:02:57]}  dxe4 {[%clk 0:02:58]} 8. Nxe4 {[%clk 0:02:57]}  Nxe4 {[%clk 0:02:59]} 9. Qxe4 {[%clk 0:02:58]}  Qd5 {[%clk 0:02:59]} 10. Qg4 {[%clk 0:02:46]}  Nd7 {[%clk 0:02:57]} 11. c3 {[%clk 0:02:42]}  Nf6 {[%clk 0:02:53]} 12. Qa4 {[%clk 0:02:39]}  Qe4 {[%clk 0:02:49]} 13. Qd1 {[%clk 0:02:35]}  Bd6 {[%clk 0:02:47]} 14. d4 {[%clk 0:02:35]}  O-O {[%clk 0:02:42]} 15. Bd3 {[%clk 0:02:35]}  Qd5 {[%clk 0:02:39]} 16. Qe2 {[%clk 0:02:35]}  Be7 {[%clk 0:02:37]} 17. Bf4 {[%clk 0:02:32]}  Qd7 {[%clk 0:02:36]} 18. Be5 {[%clk 0:02:31]}  Rfe8 {[%clk 0:02:35]} 19. Rad1 {[%clk 0:02:29]}  Rad8 {[%clk 0:02:35]} 20. Bb1 {[%clk 0:02:29]}  Nd5 {[%clk 0:02:34]} 21. Rd3 {[%clk 0:02:27]}  Bf6 {[%clk 0:02:33]} 22. Rfd1 {[%clk 0:02:18]}  Qe7 {[%clk 0:02:17]} 23. Qe4 {[%clk 0:02:13]}  g6 {[%clk 0:02:10]} 24. g3 {[%clk 0:02:02]}  Bg7 {[%clk 0:02:08]} 25. Bxg7 {[%clk 0:01:58]}  Kxg7 {[%clk 0:02:08]} 26. h4 {[%clk 0:01:59]}  h5 {[%clk 0:02:08]} 27. Kg2 {[%clk 0:01:57]}  Qf6 {[%clk 0:02:02]} 28. Rf3 {[%clk 0:01:57]}  Qe7 {[%clk 0:02:01]} 29. Qe5+ {[%clk 0:01:57]}  Kg8 {[%clk 0:01:58]} 30. Re1 {[%clk 0:01:57]}  Qd6 {[%clk 0:01:49]} 31. Qg5 {[%clk 0:01:56]}  Qe7 {[%clk 0:01:46]} 32. Qh6 {[%clk 0:01:44]}  Qf8 {[%clk 0:01:44]} 33. Qg5 {[%clk 0:01:45]}  Qe7 {[%clk 0:01:40]} 34. Qc1 {[%clk 0:01:44]}  Qd6 {[%clk 0:01:25]} 35. a3 {[%clk 0:01:42]}  e5 {[%clk 0:01:21]} 36. dxe5 {[%clk 0:01:38]}  Rxe5 {[%clk 0:01:20]} 37. Rd1 {[%clk 0:01:36]}  Qe7 {[%clk 0:01:12]} 38. c4 {[%clk 0:01:26]}  Nc7 {[%clk 0:01:04]} 39. Rxd8+ {[%clk 0:01:26]}  Qxd8 {[%clk 0:01:02]} 40. Qc3 {[%clk 0:01:25]}  Qe7 {[%clk 0:00:55]} 41. b4 {[%clk 0:01:22]}  Ne8 {[%clk 0:00:51]} 42. c5 {[%clk 0:01:22]}  Nc7 {[%clk 0:00:44]} 43. Ba2 {[%clk 0:01:20]}  Nd5 {[%clk 0:00:43]} 44. Qd3 {[%clk 0:01:18]}  a6 {[%clk 0:00:35]} 45. Qd4 {[%clk 0:01:18]}  Re4 {[%clk 0:00:31]} 46. Qd3 {[%clk 0:01:12]}  Re5 {[%clk 0:00:31]} 47. Bc4 {[%clk 0:01:12]}  Kg7 {[%clk 0:00:31]} 48. Qd4 {[%clk 0:01:12]}  Kg8 {[%clk 0:00:30]} 49. Bd3 {[%clk 0:01:10]}  Qe6 {[%clk 0:00:27]} 50. a4 {[%clk 0:01:09]}  Kh7 {[%clk 0:00:25]} 51. b5 {[%clk 0:01:09]}  axb5 {[%clk 0:00:24]} 52. axb5 {[%clk 0:01:09]}  Kg8 {[%clk 0:00:24]} 53. Bc4 {[%clk 0:01:03]}  Qe7 {[%clk 0:00:20]} 54. Bd3 {[%clk 0:00:58]}  Qe6 {[%clk 0:00:17]} 55. b6 {[%clk 0:00:58]}  Qe7 {[%clk 0:00:17]} 56. Bc4 {[%clk 0:00:56]}  Nf6 {[%clk 0:00:16]} 57. Qd6 {[%clk 0:00:49]}  Qxd6 {[%clk 0:00:15]} 58. cxd6 {[%clk 0:00:50]}  Kg7 {[%clk 0:00:16]} 59. d7 {[%clk 0:00:49]}  Nxd7 {[%clk 0:00:09]} 60. Rxf7+ {[%clk 0:00:49]}  Kh6 {[%clk 0:00:09]} 61. Rxd7 {[%clk 0:00:49]} 1-0


[Site "https://www.chess.com"]